Cogmind - Beta 14 @@@ ROGUE MODE // 2024.11.24 @ 00:36:01 Player: KURIIRI Result: Destroyed by G-47 Trooper with Particle Gun Performance ------------- Evolutions (0) 0 Regions Visited (2) 400 Robots Destroyed (30) 150 Value Destroyed (790) 790 Prototype IDs (4) 80 Alien Tech Used (0) 0 Bonus (0) 0 TOTAL SCORE: 1420 Bonus ------- None Cogmind --------- Core Integrity 0/250 Matter 281/300 Energy 64/100 System Corruption 0% Temperature Cool (9) Movement Core (50) Location -10/Mines Parts ------- > --- POWER (1) -------- (None) > --- PROPULSION (2) --- (None) > --- UTILITY (2) ------ Hacking Suite > --- WEAPON (2) ------- (None) > --- INVENTORY (5) ---- Ion Engine Large Storage Unit Utility Shielding Missile Launcher Heavy Flail Peak State ------------ > --- POWER ------------ Ion Engine > --- PROPULSION ------- Light Treads > --- UTILITY ---------- Medium Storage Unit Utility Shielding > --- WEAPON ----------- Light Assault Rifle Heavy Flail > --- INVENTORY -------- Ion Engine Armored Treads Armored Treads Improved Heat Sink Large Storage Unit Hacking Suite Beamcaster Missile Launcher Datajack [Rating: 10] Favorites ----------- Power Ion Engine Engine Ion Engine Propulsion Light Treads Treads Light Treads Utility Medium Storage Unit Storage Medium Storage Unit Hackware Hacking Suite Protection Utility Shielding Weapon Assault Rifle Energy Gun Medium Laser Ballistic Gun Assault Rifle Impact Weapon Heavy Flail Special Melee Weapon Datajack Build | -11 -10 -10 ------- Run | Yrd Mat Min Slots Evolved . | . . . Power . | . . . Propulsion . | . . . Utility . | . . . Weapon . | . . . Parts Attached 19 | 6 9 4 Power 2 | 1 1 . Engine 2 | 1 1 . Core . | . . . Reactor . | . . . Propulsion 4 | 2 2 . Treads 4 | 2 2 . Leg . | . . . Wheel . | . . . Hover . | . . . Flight . | . . . Utility 6 | 1 4 1 Device . | . . . Storage 4 | 1 3 . Processor . | . . . Hackware 1 | . . 1 Protection 1 | . 1 . Artifact . | . . . Weapon 7 | 2 2 3 Energy Gun 1 | 1 . . Energy Cannon . | . . . Ballistic Gun 4 | 1 2 1 Ballistic Cannon . | . . . Launcher . | . . . Special Weapon . | . . . Impact Weapon 1 | . . 1 Slashing Weapon . | . . . Piercing Weapon . | . . . Special Melee Weapon 1 | . . 1 Unidentified Prototypes . | . . . Parts Lost 7 | . 5 2 Power 2 | . 1 1 Propulsion 2 | . 2 . Utility . | . . . Weapon 3 | . 2 1 Highest Loss Streak 2 | . 2 1 To Critical Strikes . | . . . Average Slot Usage (%) 82 | . 82 82 Engine 13 | . 13 12 Treads 20 | . 21 14 Storage 14 | . 14 14 Protection 7 | . 6 13 Ballistic Gun 24 | . 24 21 Peak Build Rating 10 | 6 7 10 Average Rating 6 | 4 5 7 On Entrance 4 | . 6 7 Naked Turns . | . . . Heaviest Build 20 | 14 19 20 Greatest Support 40 | 40 40 20 Greatest Overweight (x) . | . . . Average Overweight (x) . | . . . Largest Inventory Capacity 15 | 8 15 10 Average Capacity 9 | 7 9 9 Most Carried 10 | 1 7 10 Average Carried 4 | . 4 8 Final Capacity 10 | 8 10 5 Final Carried 7 | 1 7 5 Class Distribution -------------------- 100% | Mutant Dominant Class ---------------- Mutant | -10/Materials Mutant | -10/Mines Resources | -11 -10 -10 ----------- Run | Yrd Mat Min Matter Collected 740 | 228 484 28 Remotely . | . . . Salvage Created 980 | . 896 84 Parts 71 | . 71 . Haulers Intercepted 1 | . 1 . Recyclers Shooed . | . . . Parts Field Recycled . | . . . Retrieved Matter . | . . . Parts Self-Destructed . | . . . Prevented . | . . . Kills | -11 -10 -10 ------- Run | Yrd Mat Min Combat Hostiles Destroyed 22 | . 20 2 Melee 1 | . . 1 Guns 20 | . 20 . Classes Destroyed 7 | . 7 . Worker 1 | . 1 . Builder 1 | . 1 . Hauler 1 | . 1 . Operator 2 | . 2 . Watcher 3 | . 3 . Swarmer 3 | . 3 . Grunt 19 | . 17 2 Best Kill Streak 6 | . 6 2 Combat Bots Only 5 | . 5 2 Max Kills in Single Turn 2 | . 2 1 Gunslinging . | . . . Exploded . | . . . Melee 1 | . . 1 Uniques/NPCs Destroyed . | . . . Combat | -11 -10 -10 -------- Run | Yrd Mat Min Hostile Shots Fired 118 | . 98 20 Missed 23 | . 19 4 Damage Taken 1197 | . 902 295 Core 258 | . 189 69 Absorbed by Shields . | . . . Redirected to Shielding 9 | . 3 6 Regen/Repaired (Parts) 106 | . 106 . Core Remaining (%) 100 | 100 . . Volleys Fired 91 | . 86 5 Largest 2 | . 2 2 Hottest 70 | . 70 40 Shots Fired 159 | . 150 9 Gun 159 | . 150 9 Cannon . | . . . Launcher . | . . . Special . | . . . Kinetic 152 | . 143 9 Thermal 7 | . 7 . Explosive . | . . . Electromagnetic . | . . . Robot Hit Streak 8 | . 8 5 Robot Miss Streak 4 | . 4 2 Penetration Max . | . . . Secondary Targets 4 | . 4 . Max Gunslinging Chain 1 | . 1 . Shots Hit Robots 111 | . 100 11 Core Hits 50 | . 46 4 Critical Kills . | . . . Critical Parts Destroyed 3 | . . 3 Critical Strikes 4 | . 1 3 Burn 1 | . 1 . Smash 3 | . . 3 Melee Attacks 7 | . . 7 Impact 5 | . . 5 Slashing . | . . . Piercing . | . . . Sneak Attacks 2 | . . 2 Combat Hostiles . | . . . Follow-up Attacks . | . . . Damage Inflicted 1499 | . 1288 211 Guns 1362 | . 1288 74 Cannons . | . . . Explosions . | . . . Melee 137 | . . 137 Ramming . | . . . Kinetic 1311 | . 1237 74 Thermal 51 | . 51 . Explosive . | . . . Electromagnetic . | . . . Impact 137 | . . 137 Slashing . | . . . Piercing . | . . . Highest Corruption . | . . . Average Corruption . | . . . Corruption Purged . | . . . Corruption Blocked . | . . . Overload Shots . | . . . Overflow Damage 137 | . . 137 Projectiles . | . . . Explosions . | . . . Melee 137 | . . 137 Knockbacks . | . . . Impact . | . . . Kinetic . | . . . Secondary . | . . . Self-Inflicted Damage . | . . . Shots . | . . . Rammed . | . . . Targets Rammed . | . . . Kicked . | . . . Crushed . | . . . Highest Temperature 153 | . 153 35 Average Temperature 51 | . 60 20 Received Heat Transfer 609 | . 468 141 Siege Activations . | . . . Robots Corrupted 1 | . . 1 Combat Hostiles 1 | . . 1 Parts Fried 1 | . . 1 Impact Corruptions 4 | . . 4 Robots Melted . | . . . Combat Hostiles . | . . . Parts Melted . | . . . Heat Transferred 222 | . 222 . Parts Sabotaged . | . . . Parts Stolen . | . . . Parts Stripped . | . . . Power Chain Reactions . | . . . Alert | -11 -10 -10 ------- Run | Yrd Mat Min Peak Influence 338 | . 338 68 Initial 28 | . . 28 Average 108 | . 127 38 Maximum Alert Level 1 | . 1 . Low Security (%) 88 | 100 85 100 Level 1 11 | . 14 . Level 2 . | . . . Level 3 . | . . . Level 4 . | . . . Level 5 . | . . . High Security . | . . . Max Security . | . . . Squads Dispatched 8 | . 8 . Investigation 7 | . 7 . Extermination . | . . . Reinforcement 1 | . 1 . Assault . | . . . Garrison . | . . . Intercept . | . . . Searches Triggered . | . . . Construction Impeded . | . . . Haulers Reinforced . | . . . Active Scanning Responses . | . . . Cargo Convoy Interrupts . | . . . Stealth | -11 -10 -10 --------- Run | Yrd Mat Min Distress Signals 2 | . 2 . Communications Jammed . | . . . Distress Signals . | . . . Times Spotted 34 | . 30 4 Peak Tracking Total 6 | . 6 2 Tactical Retreats 1 | . 1 . Traps | -11 -10 -10 ------- Run | Yrd Mat Min Traps Triggered 5 | . 4 1 Indirectly . | . . . Trap Hack Attempts . | . . . Triggered . | . . . Disarmed . | . . . Reprogrammed . | . . . Reused . | . . . Traps Extracted . | . . . Installed . | . . . Triggered . | . . . Machines | -11 -10 -10 ---------- Run | Yrd Mat Min Machines Disabled . | . . . Max in Single Turn . | . . . Machines Repaired . | . . . Machines Dismantled . | . . . Machines Sabotaged . | . . . Overloaded Fab Kills . | . . . Hacking | -11 -10 -10 --------- Run | Yrd Mat Min Machines Accessed 10 | . 9 1 Terminals 6 | . 6 . Fabricators . | . . . Repair Stations 1 | . 1 . Recycling Units 2 | . 2 . Scanalyzers . | . . . Garrison Access . | . . . Total Hacks 34 | . 33 1 Successful 23 | . 22 1 Failed 11 | . 11 . Catastrophic . | . . . Database Lockouts . | . . . Manual 21 | . 21 . Terminals 28 | . 28 . Fabricators . | . . . Repair Stations 3 | . 3 . Recycling Units 2 | . 2 . Scanalyzers . | . . . Garrison Access . | . . . Terminal Hacks 15 | . 14 1 Robot Analysis 7 | . 7 . Prototype ID Bank 4 | . 4 . Open Door 1 | . . 1 Alert Level 1 | . 1 . Unreport Threat 1 | . 1 . Zone Layout 1 | . 1 . Fabricator Hacks . | . . . Repair Station Hacks 2 | . 2 . Scan Component 1 | . 1 . Repair 1 | . 1 . Recycling Unit Hacks . | . . . Scanalyzer . | . . . Garrison Access Hacks . | . . . Unauthorized Hacks 6 | . 6 . Terminals 4 | . 4 . Botnet 3 | . 3 . Operators 1 | . 1 . Fabricators . | . . . Repair Stations . | . . . Recycling Units 2 | . 2 . Tunnel 2 | . 2 . Scanalyzers . | . . . Garrison Access . | . . . Data Cores Recovered 1 | . 1 . Used 1 | . 1 . Hacking Detections 6 | . 6 . Full Trace Events 3 | . 3 . Feedback Events . | . . . Feedback Blocked . | . . . Robot Schematics Acquired . | . . . Robots Built . | . . . Authchips . | . . . Time . | . . . Total Robot Build Rating . | . . . Part Schematics Acquired . | . . . Parts Built . | . . . Authchips . | . . . Time . | . . . Total Part Build Rating . | . . . Parts Repaired 1 | . 1 . Time 26 | . 26 . Parts Recycled . | . . . Recycled Matter . | . . . Retrieved Matter . | . . . Retrieved Components . | . . . Parts Scanalyzed . | . . . Part Schematics Acquired . | . . . Parts Damaged . | . . . Bothacking | -11 -10 -10 ------------ Run | Yrd Mat Min Used RIF Installer . | . . . Robots Hacked 1 | . . 1 Non-combat 1 | . . 1 Combat . | . . . Robot Hacks Applied 2 | . . 2 parse_system 1 | . . 1 no_distress 1 | . . 1 Relay Couplers Released . | . . . Fabnet Peak Effective % . | . . . Robots Rewired . | . . . Allies Hacked . | . . . Hacks Repelled . | . . . Allies | -11 -10 -10 -------- Run | Yrd Mat Min Total Allies . | . . . Largest Group . | . . . Highest-Rated Group . | . . . Highest-Rated Ally . | . . . Total Orders . | . . . Ally Attacks . | . . . Total Damage . | . . . Kills . | . . . Allies Corrupted . | . . . Allies Melted . | . . . Intel | -11 -10 -10 ------- Run | Yrd Mat Min Robot Analysis Total 7 | . 7 . Derelict Logs Recovered . | . . . Drone Launches . | . . . Drone Recoveries . | . . . Exploration | -11 -10 -10 ------------- Run | Yrd Mat Min Turns Passed 1533 | 75 1238 220 Spaces Moved 670 | 43 552 75 Core 4 | 2 . 2 Treads 666 | 41 552 73 Legs . | . . . Wheels . | . . . Hover . | . . . Flight . | . . . Fastest Speed 50 | 50 160 50 Average Speed 159 | 154 160 157 Slowest Speed 160 | 160 160 160 Overloaded Moves . | . . . Propulsion Burnouts . | . . . Robots Hopped . | . . . Cave-ins Triggered . | . . . Exploration Rate (%) 34 | 4 77 23 Regions Visited 2 Branch Regions 1 Pre-discovered Areas 2 | . 2 . Known Exits Taken . | . . . Unknown Exits Taken 2 | 1 1 . Scrap Searched . | . . . Spaces Dug . | . . . Terrain Destroyed . | . . . Melee . | . . . Projectile . | . . . AOE . | . . . Terrain Rammed . | . . . Walls Destroyed . | . . . Machines Disabled . | . . . Actions | -11 -10 -10 --------- Run | Yrd Mat Min Total 969 | 49 758 162 Wait 163 | . 104 59 Move 668 | 42 551 75 Hop . | . . . Pick Up 14 | 1 7 6 Fast Attach 11 | 6 5 . Attach 3 | . 2 1 Detach . | . . . Swap 5 | . 2 3 Drop 7 | . 1 6 Fire 91 | . 86 5 Melee 7 | . . 7 Ram . | . . . Kick . | . . . Crush . | . . . Escape Stasis . | . . . Rewire . | . . . Trap . | . . . Miscellaneous . | . . . Route ------- -11/Scrapyard -10/Materials (discovered 5 exits: [*Mat x3] / *Min x2) -10/Mines History --------- Turn | Location | Event 27 | -11/Scrapyard | Discovered new exit (range 16) 76 | -11/Scrapyard | Entered Materials 309 | -10/Materials | Build established: Mutant 503 | -10/Materials | Discovered new exit (range 4) 635 | -10/Materials | Discovered new exit (range 14) 707 | -10/Materials | Core integrity fell below 50% 929 | -10/Materials | Discovered new exit (range 10) 1210 | -10/Materials | Repaired Lgt. Treads 1240 | -10/Materials | Discovered new exit (range 7) 1255 | -10/Materials | Discovered new exit (range 16) 1314 | -10/Materials | Entered Mines 1338 | -10/Mines | Met a Derelict who couldn't figure out how to use a Trap Extractor 1407 | -10/Mines | Core integrity fell below 20% 1534 | -10/Mines | Destroyed by G-47 Trooper with Particle Gun Last Messages --------------- (Smash). 01480_ Destroyed Ion Engine. 01480_ Destroyed Heat Sink. 01480_ G-34 Mercenary system corrupted by crushing effect. 01481_ G-34 Mercenary system terminally corrupted. 01481_ Aluminum Leg fried. 01482_ Acquired 28 matter. 01519_ Ion Engine destroyed. 01522_ K-01 Serf collects debris. 01526_ Dropped Lgt. Assault Rifle. 01526_ K-01 Serf collects debris. 01526_ Dropped Hvy. Flail. 01528_ Acquired Hvy. Flail. 01529_ K-01 Serf collects debris. 01531_ Dropped Med. Storage Unit. 01531_ R-06 Scavenger collects Datajack. 01533_ Dropped Lgt. Treads. 01533_ K-01 Serf collects debris. Map ----- +----------------------------------------------------+ | | | | | | | | | | | | | | | | | ?????????????????????????????????????????????????? | | ?????????????????????????????????????????????????? | | ?????????????????????????????????????????????????? | | ?????????????????????????????????????????????????? | | ???????????????????????????#####???#?????????????? | | ???????????????????????????# ##?# #???????????? | | ???????????????????????????# ## ???????????? | | ???????????????????????????# ???????????? | | ???????????????????????????# ???????????? | | ??????????????????????????## ????????????? | | ?????????????????????????##$ ?????????????? | | ????????????????????????## #??????????????? | | ????????????????????????# #???????????????? | | ????????????????????????# #????????????????? | | ?????????????????????????# #?????????????????? | | ?????????????????????????# ######????????????? | | ??????????????????????#### ## ######???????? | | ?????????????????????##==@ #???????? | | ?????????????????????#![ #???????? | | ????????????????????##[= r ### ### #???????? | | ?????????????????#### ! ###?## #???????? | | ????????????????## g ##????## #% #???????? | | ??????# #### g ##?????# # #####???????? | | ??????# #?????#### #???????????? | | ?????# #??????# ####????????? | | ?????# ! #### ##??????# # #????????? | | ?????? ?????### ##???????# #????????? | | ???????? ?????????## k ##???????## ##????????? | | ???????????????????# ##????##### ##?????????? | | ??????????????????? ##????## [ # ##??????????? | | ??????????????????? ##?????# ! # #?????####??? | | ??????????????????####??????# *! ##???## ##?? | | ????????????????????????????# ! ##### ##? | | ????????????????????????????# = # ## ## | | ????????????????????????????## ## | | ?????????????????????????????####### | | ???????????????????????????????????# ##### | | ???????????????????????????????????## ###???## | | ????????????????????????????????????#####??????## | | ????????????????????????????????????????????????# | | ????????????????????????????????????????????????# | | ???????????????????????????????????????????????? | +----------------------------------------------------+ Best States ------------- Heat Dissipation 25 Energy Generation 10 Energy Capacity 250 Matter Stores 300 Matter Capacity 300 Sight Range 16 Terrain Scan Density 10 Utility Shielding 33 Evasion (%) 40 Recoil Reduction 2 Offensive Hacking 10 Item Schematics ----------------- None Robot Schematics ------------------ None Fabricated ------------ Nothing Alien Tech Used ----------------- None Achievements -------------- None Challenges ------------ None Game ------ Seed RelayVisualFrame Manual? 0 Play Time 00:10:26 Cumulative 194.0 hours Start 2024.11.24 @ 00:27:08 End 2024.11.24 @ 00:36:01 Sessions 1 Manual Loads 0 Difficulty Rogue Special Mode None Game No. 127 Rogue 91 Adventurer 36 Explorer 0 Win Type - Total 3 Types 2/0/0/1/0/0/0/0/0 Lore% 56 Gallery% 66 Achievement% 57 Wizard Run 0 Options --------- Layout 1 ASCII 0 Keyboard 0 Movement Numpad Keybinds 0 Fullscreen 1 Font 48/Smallcaps Map View 50x35 Zoom Use 0% Tactical HUD 1 Map Filters NONE Filters NONE Steam 1 RUN: 87469819-38a9-4f36-9c1e-63d267e10cee